[Event "Pobeskydi 2026"]
[Site "Frydek-Mistek, Czech Republic"]
[Date "2026.04.04"]
[Round "5.2"]
[White "Zeman, Daniel Nikolas"]
[Black "Walek, Petr"]
[Result "1/2-1/2"]
[TimeControl "90 min+30s/move"]
[WhiteTitle "-"]
[BlackTitle "-"]
[WhiteFideId "23717130"]
[BlackFideId "339393"]
[WhiteElo "1957"]
[BlackElo "2304"]

1. e4 {[%clk 01:30:56]} {[%emt 00:00:03]} c5 {[%clk 01:30:56]} {[%emt
00:00:05]} 2. Nf3 {[%clk 01:31:18]} {[%emt 00:00:07]} g6 {[%clk 01:29:34]}
{[%emt 00:01:53]} 3. c3 {[%clk 01:30:55]} {[%emt 00:00:52]} Bg7 {[%clk
01:29:04]} {[%emt 00:01:00]} 4. d4 {[%clk 01:29:11]} {[%emt 00:02:14]} cxd4
{[%clk 01:29:29]} {[%emt 00:00:05]} 5. cxd4 {[%clk 01:29:36]} {[%emt 00:00:05]}
d5 {[%clk 01:29:55]} {[%emt 00:00:05]} 6. exd5 {[%clk 01:29:05]} {[%emt
00:01:01]} Nf6 {[%clk 01:30:16]} {[%emt 00:00:09]} 7. Nc3 {[%clk 01:28:43]}
{[%emt 00:00:51]} O-O {[%clk 01:29:54]} {[%emt 00:00:52]} 8. Bc4 {[%clk
01:23:01]} {[%emt 00:06:12]} Nbd7 {[%clk 01:30:18]} {[%emt 00:00:06]} 9. O-O
{[%clk 01:22:53]} {[%emt 00:00:38]} Nb6 {[%clk 01:28:22]} {[%emt 00:02:26]} 10.
Bb3 {[%clk 01:23:16]} {[%emt 00:00:07]} Nbxd5 {[%clk 01:09:12]} {[%emt
00:19:40]} 11. Re1 {[%clk 01:17:45]} {[%emt 00:06:01]} b6 {[%clk 01:02:57]}
{[%emt 00:06:45]} 12. Bg5 {[%clk 01:11:16]} {[%emt 00:06:59]} Bb7 {[%clk
01:01:21]} {[%emt 00:02:06]} 13. Nxd5 {[%clk 01:08:53]} {[%emt 00:02:53]} Bxd5
{[%clk 01:00:41]} {[%emt 00:01:11]} 14. Bxd5 {[%clk 01:04:51]} {[%emt
00:04:32]} Nxd5 {[%clk 00:59:34]} {[%emt 00:01:37]} 15. Qd2 {[%clk 01:02:38]}
{[%emt 00:02:42]} Rc8 {[%clk 00:48:31]} {[%emt 00:11:33]} 16. Rac1 {[%clk
01:01:50]} {[%emt 00:01:18]} f6 {[%clk 00:48:07]} {[%emt 00:00:54]} 17. Bh6
{[%clk 00:58:10]} {[%emt 00:04:09]} Qd7 {[%clk 00:47:13]} {[%emt 00:01:25]} 18.
Bxg7 {[%clk 00:54:14]} {[%emt 00:04:27]} Kxg7 {[%clk 00:47:40]} {[%emt
00:00:03]} 19. b3 {[%clk 00:51:08]} {[%emt 00:03:35]} Rxc1 {[%clk 00:40:28]}
{[%emt 00:07:43]} 20. Rxc1 {[%clk 00:51:26]} {[%emt 00:00:11]} Rd8 {[%clk
00:40:05]} {[%emt 00:00:54]} 21. h3 {[%clk 00:43:55]} {[%emt 00:08:00]} Qf5
{[%clk 00:36:24]} {[%emt 00:04:11]} 22. Qc2 {[%clk 00:39:22]} {[%emt 00:05:03]}
Qxc2 {[%clk 00:28:11]} {[%emt 00:08:42]} 23. Rxc2 {[%clk 00:39:51]} {[%emt
00:00:02]} g5 {[%clk 00:28:17]} {[%emt 00:00:25]} 24. g3 {[%clk 00:37:20]}
{[%emt 00:03:00]} Kf7 {[%clk 00:26:13]} {[%emt 00:02:34]} 25. Kg2 {[%clk
00:32:38]} {[%emt 00:05:12]} h5 {[%clk 00:23:42]} {[%emt 00:03:01]} 26. a3
{[%clk 00:27:08]} {[%emt 00:06:00]} Ke6 {[%clk 00:19:33]} {[%emt 00:04:39]} 27.
Nh2 {[%clk 00:23:19]} {[%emt 00:04:19]} Rh8 {[%clk 00:14:47]} {[%emt 00:05:17]}
28. Nf1 {[%clk 00:21:08]} {[%emt 00:02:41]} h4 {[%clk 00:14:33]} {[%emt
00:00:44]} 29. Ne3 {[%clk 00:11:51]} {[%emt 00:09:47]} hxg3 {[%clk 00:13:54]}
{[%emt 00:01:09]} 30. Nxd5 {[%clk 00:12:14]} {[%emt 00:00:07]} Kxd5 {[%clk
00:14:20]} {[%emt 00:00:04]} 31. Kxg3 {[%clk 00:12:27]} {[%emt 00:00:17]} Kd6
{[%clk 00:06:39]} {[%emt 00:08:12]} 32. Rc4 {[%clk 00:11:19]} {[%emt 00:01:37]}
Rh4 {[%clk 00:05:49]} {[%emt 00:01:20]} 33. f3 {[%clk 00:10:06]} {[%emt
00:01:43]} e6 {[%clk 00:04:29]} {[%emt 00:01:50]} 34. b4 {[%clk 00:06:43]}
{[%emt 00:03:53]} Rh7 {[%clk 00:02:49]} {[%emt 00:02:10]} 35. Rc8 {[%clk
00:06:05]} {[%emt 00:01:09]} Rd7 {[%clk 00:01:47]} {[%emt 00:01:31]} 36. Rf8
{[%clk 00:05:18]} {[%emt 00:01:17]} Ke7 {[%clk 00:01:18]} {[%emt 00:00:59]} 37.
Rh8 {[%clk 00:05:04]} {[%emt 00:00:43]} Rxd4 {[%clk 00:01:16]} {[%emt
00:00:33]} 38. Rh7+ {[%clk 00:05:30]} {[%emt 00:00:04]} Kd6 {[%clk 00:01:36]}
{[%emt 00:00:10]} 39. Rxa7 {[%clk 00:05:55]} {[%emt 00:00:05]} b5 {[%clk
00:00:40]} {[%emt 00:01:26]} 40. Ra8 {[%clk 00:04:07]} {[%emt 00:02:18]} Ke5
{[%clk 00:00:46]} {[%emt 00:00:25]} 41. Rc8 {[%clk 00:04:07]} {[%emt 00:00:29]}
Rd3 {[%clk 00:00:49]} {[%emt 00:00:28]} 42. Rc5+ {[%clk 00:04:11]} {[%emt
00:00:26]} Kd6 {[%clk 00:00:54]} {[%emt 00:00:24]} 43. Rxb5 {[%clk 00:04:36]}
{[%emt 00:00:05]} Rxa3 {[%clk 00:01:21]} {[%emt 00:00:03]} 44. Rb6+ {[%clk
00:04:39]} {[%emt 00:00:27]} Ke5 {[%clk 00:00:42]} {[%emt 00:01:08]} 45. Rb5+
{[%clk 00:04:09]} {[%emt 00:01:01]} Kd6 {[%clk 00:00:38]} {[%emt 00:00:34]} 46.
Rb6+ {[%clk 00:04:34]} {[%emt 00:00:05]} Ke5 {[%clk 00:01:05]} {[%emt
00:00:04]} 47. Rb5+ {[%clk 00:05:00]} {[%emt 00:00:04]} Kd4 {[%clk 00:00:47]}
{[%emt 00:00:48]} 48. Rb6 {[%clk 00:05:03]} {[%emt 00:00:27]} Ke5 {[%clk
00:00:46]} {[%emt 00:00:30]} 1/2-1/2

[Event "Pobeskydi 2026"]
[Site "Frydek-Mistek, Czech Republic"]
[Date "2026.04.04"]
[Round "5.3"]
[White "Lichorad, Mateusz"]
[Black "Haasova, Timea"]
[Result "1/2-1/2"]
[TimeControl "90 min+30s/move"]
[WhiteTitle "-"]
[BlackTitle "-"]
[WhiteFideId "21817693"]
[BlackFideId "14960109"]
[WhiteElo "2039"]
[BlackElo "2012"]

1. e4 {[%clk 01:30:58]} {[%emt 00:00:02]} c5 {[%clk 01:30:46]} {[%emt
00:00:14]} 2. Nf3 {[%clk 01:31:21]} {[%emt 00:00:07]} e6 {[%clk 01:31:04]}
{[%emt 00:00:11]} 3. d4 {[%clk 01:31:46]} {[%emt 00:00:04]} cxd4 {[%clk
01:31:26]} {[%emt 00:00:09]} 4. Nxd4 {[%clk 01:32:13]} {[%emt 00:00:04]} Nf6
{[%clk 01:31:41]} {[%emt 00:00:14]} 5. Nc3 {[%clk 01:32:32]} {[%emt 00:00:10]}
Nc6 {[%clk 01:31:52]} {[%emt 00:00:19]} 6. Ndb5 {[%clk 01:31:56]} {[%emt
00:01:06]} Bb4 {[%clk 01:32:08]} {[%emt 00:00:15]} 7. a3 {[%clk 01:32:14]}
{[%emt 00:00:12]} Bxc3+ {[%clk 01:32:23]} {[%emt 00:00:15]} 8. Nxc3 {[%clk
01:32:42]} {[%emt 00:00:02]} d5 {[%clk 01:32:35]} {[%emt 00:00:18]} 9. exd5
{[%clk 01:33:05]} {[%emt 00:00:07]} exd5 {[%clk 01:32:48]} {[%emt 00:00:18]} 10.
Bd3 {[%clk 01:33:25]} {[%emt 00:00:09]} O-O {[%clk 01:30:56]} {[%emt 00:02:21]}
11. O-O {[%clk 01:33:49]} {[%emt 00:00:07]} d4 {[%clk 01:22:26]} {[%emt
00:09:00]} 12. Ne2 {[%clk 01:34:06]} {[%emt 00:00:14]} Bg4 {[%clk 01:17:57]}
{[%emt 00:04:59]} 13. f3 {[%clk 01:34:31]} {[%emt 00:00:04]} Bh5 {[%clk
01:04:23]} {[%emt 00:14:03]} 14. Nf4 {[%clk 01:34:54]} {[%emt 00:00:08]} Bg6
{[%clk 00:58:42]} {[%emt 00:06:11]} 15. Nxg6 {[%clk 01:33:20]} {[%emt
00:02:04]} hxg6 {[%clk 00:58:20]} {[%emt 00:00:51]} 16. f4 {[%clk 01:32:00]}
{[%emt 00:01:51]} Re8 {[%clk 00:50:50]} {[%emt 00:08:00]} 17. Qf3 {[%clk
01:25:12]} {[%emt 00:07:18]} Qd7 {[%clk 00:41:21]} {[%emt 00:09:59]} 18. Bd2
{[%clk 01:14:39]} {[%emt 00:11:03]} Re7 {[%clk 00:37:08]} {[%emt 00:04:43]} 19.
b4 {[%clk 01:04:43]} {[%emt 00:10:27]} a6 {[%clk 00:30:47]} {[%emt 00:06:50]}
20. a4 {[%clk 00:52:13]} {[%emt 00:13:00]} Nd5 {[%clk 00:27:09]} {[%emt
00:04:08]} 21. b5 {[%clk 00:47:45]} {[%emt 00:04:58]} Ncb4 {[%clk 00:26:16]}
{[%emt 00:01:23]} 22. Rab1 {[%clk 00:44:17]} {[%emt 00:03:58]} Nxd3 {[%clk
00:22:25]} {[%emt 00:04:21]} 23. Qxd3 {[%clk 00:43:53]} {[%emt 00:00:54]} axb5
{[%clk 00:17:02]} {[%emt 00:05:53]} 24. axb5 {[%clk 00:44:15]} {[%emt
00:00:07]} Ne3 {[%clk 00:15:24]} {[%emt 00:02:07]} 25. Rf3 {[%clk 00:41:13]}
{[%emt 00:03:32]} Rae8 {[%clk 00:10:29]} {[%emt 00:05:26]} 26. Re1 {[%clk
00:39:42]} {[%emt 00:02:02]} Qg4 {[%clk 00:06:33]} {[%emt 00:04:25]} 27. Bxe3
{[%clk 00:38:17]} {[%emt 00:01:55]} Rxe3 {[%clk 00:06:50]} {[%emt 00:00:14]} 28.
Rfxe3 {[%clk 00:37:35]} {[%emt 00:01:12]} Rxe3 {[%clk 00:07:12]} {[%emt
00:00:08]} 29. Rxe3 {[%clk 00:37:59]} {[%emt 00:00:05]} dxe3 {[%clk 00:07:36]}
{[%emt 00:00:06]} 30. Qxe3 {[%clk 00:38:13]} {[%emt 00:00:16]} Qd1+ {[%clk
00:07:58]} {[%emt 00:00:07]} 31. Kf2 {[%clk 00:38:40]} {[%emt 00:00:04]} Qxc2+
{[%clk 00:08:19]} {[%emt 00:00:10]} 32. Kg3 {[%clk 00:38:41]} {[%emt 00:00:24]}
Qc4 {[%clk 00:07:24]} {[%emt 00:01:29]} 33. b6 {[%clk 00:33:45]} {[%emt
00:05:27]} Qc6 {[%clk 00:03:51]} {[%emt 00:04:02]} 34. Qd4 {[%clk 00:32:03]}
{[%emt 00:02:12]} Qe6 {[%clk 00:03:12]} {[%emt 00:01:09]} 35. h3 {[%clk
00:31:31]} {[%emt 00:01:03]} Kf8 {[%clk 00:01:02]} {[%emt 00:02:39]} 36. Qd8+
{[%clk 00:31:55]} {[%emt 00:00:06]} Qe8 {[%clk 00:01:29]} {[%emt 00:00:03]} 37.
Qd6+ {[%clk 00:31:32]} {[%emt 00:00:51]} Kg8 {[%clk 00:01:48]} {[%emt
00:00:13]} 38. Qc7 {[%clk 00:30:22]} {[%emt 00:01:40]} Qe4 {[%clk 00:02:02]}
{[%emt 00:00:15]} 39. Kh2 {[%clk 00:29:32]} {[%emt 00:01:20]} Qd5 {[%clk
00:02:03]} {[%emt 00:00:29]} 1/2-1/2

[Event "Pobeskydi 2026"]
[Site "Frydek-Mistek, Czech Republic"]
[Date "2026.04.04"]
[Round "5.4"]
[White "Karas, Marek"]
[Black "Buchtova, Viktorie"]
[Result "1-0"]
[TimeControl "90 min+30s/move"]
[WhiteTitle "-"]
[BlackTitle "-"]
[WhiteFideId "14928558"]
[BlackFideId "23714786"]
[WhiteElo "2232"]
[BlackElo "2055"]

1. c4 {[%clk 01:30:54]} {[%emt 00:00:04]} e5 {[%clk 01:30:53]} {[%emt
00:00:08]} 2. Nc3 {[%clk 01:31:16]} {[%emt 00:00:09]} Nf6 {[%clk 01:31:19]}
{[%emt 00:00:03]} 3. Nf3 {[%clk 01:31:25]} {[%emt 00:00:20]} Nc6 {[%clk
01:31:34]} {[%emt 00:00:16]} 4. e4 {[%clk 01:31:35]} {[%emt 00:00:19]} Bb4
{[%clk 01:21:27]} {[%emt 00:10:39]} 5. d3 {[%clk 01:31:51]} {[%emt 00:00:12]}
Bxc3+ {[%clk 01:16:37]} {[%emt 00:05:21]} 6. bxc3 {[%clk 01:32:14]} {[%emt
00:00:06]} O-O {[%clk 01:16:00]} {[%emt 00:01:08]} 7. g3 {[%clk 01:31:13]}
{[%emt 00:01:31]} h6 {[%clk 01:15:05]} {[%emt 00:01:26]} 8. Bg2 {[%clk
01:31:21]} {[%emt 00:00:21]} d6 {[%clk 01:13:49]} {[%emt 00:01:47]} 9. O-O
{[%clk 01:31:28]} {[%emt 00:00:23]} Be6 {[%clk 01:01:53]} {[%emt 00:12:27]} 10.
Rb1 {[%clk 01:29:15]} {[%emt 00:02:42]} Rb8 {[%clk 01:01:34]} {[%emt 00:00:49]}
11. Nh4 {[%clk 01:28:07]} {[%emt 00:01:37]} Nd7 {[%clk 01:00:13]} {[%emt
00:01:52]} 12. Be3 {[%clk 01:22:54]} {[%emt 00:05:41]} b6 {[%clk 00:55:49]}
{[%emt 00:04:56]} 13. Qe2 {[%clk 01:15:33]} {[%emt 00:07:50]} Na5 {[%clk
00:46:25]} {[%emt 00:09:55]} 14. Nf5 {[%clk 01:13:16]} {[%emt 00:02:46]} Nf6
{[%clk 00:39:08]} {[%emt 00:07:47]} 15. g4 {[%clk 01:10:45]} {[%emt 00:03:01]}
Nh7 {[%clk 00:35:49]} {[%emt 00:03:50]} 16. Qf3 {[%clk 01:09:23]} {[%emt
00:01:51]} Qf6 {[%clk 00:33:17]} {[%emt 00:03:03]} 17. Qg3 {[%clk 01:07:33]}
{[%emt 00:02:19]} Nc6 {[%clk 00:29:53]} {[%emt 00:03:55]} 18. Bd2 {[%clk
01:04:15]} {[%emt 00:03:48]} Ne7 {[%clk 00:30:00]} {[%emt 00:00:22]} 19. f4
{[%clk 01:02:28]} {[%emt 00:02:17]} exf4 {[%clk 00:21:37]} {[%emt 00:08:54]} 20.
Rxf4 {[%clk 00:56:42]} {[%emt 00:06:14]} Nxf5 {[%clk 00:20:13]} {[%emt
00:01:55]} 21. gxf5 {[%clk 00:54:30]} {[%emt 00:02:42]} Bd7 {[%clk 00:20:14]}
{[%emt 00:00:30]} 22. Rbf1 {[%clk 00:52:11]} {[%emt 00:02:48]} Rbe8 {[%clk
00:18:16]} {[%emt 00:02:29]} 23. Rg4 {[%clk 00:44:06]} {[%emt 00:08:34]} Re5
{[%clk 00:15:24]} {[%emt 00:03:23]} 24. Be3 {[%clk 00:41:48]} {[%emt 00:02:48]}
c5 {[%clk 00:12:01]} {[%emt 00:03:54]} 25. Bf4 {[%clk 00:40:08]} {[%emt
00:02:08]} Ba4 {[%clk 00:10:31]} {[%emt 00:02:01]} 26. d4 {[%clk 00:39:51]}
{[%emt 00:00:48]} cxd4 {[%clk 00:10:33]} {[%emt 00:00:28]} 27. cxd4 {[%clk
00:40:09]} {[%emt 00:00:10]} Ra5 {[%clk 00:08:59]} {[%emt 00:02:05]} 28. e5
{[%clk 00:40:07]} {[%emt 00:00:31]} dxe5 {[%clk 00:09:23]} {[%emt 00:00:07]} 29.
Bxe5 {[%clk 00:40:13]} {[%emt 00:00:24]} Rxe5 {[%clk 00:09:29]} {[%emt
00:00:25]} 30. dxe5 {[%clk 00:40:16]} {[%emt 00:00:26]} Qd8 {[%clk 00:09:10]}
{[%emt 00:00:49]} 31. f6 {[%clk 00:39:51]} {[%emt 00:00:55]} g5 {[%clk
00:07:21]} {[%emt 00:02:19]} 32. Qh3 {[%clk 00:39:47]} {[%emt 00:00:33]} Kh8
{[%clk 00:07:19]} {[%emt 00:00:32]} 33. Qxh6 {[%clk 00:40:07]} {[%emt
00:00:10]} Rg8 {[%clk 00:07:37]} {[%emt 00:00:12]} 34. Be4 {[%clk 00:40:22]}
{[%emt 00:00:15]} Qd4+ {[%clk 00:07:33]} {[%emt 00:00:34]} 35. Kh1 {[%clk
00:40:35]} {[%emt 00:00:16]} Rg6 {[%clk 00:05:41]} {[%emt 00:02:22]} 36. Qxh7+
{[%clk 00:40:54]} {[%emt 00:00:12]} 1-0

[Event "Pobeskydi 2026"]
[Site "Frydek-Mistek, Czech Republic"]
[Date "2026.04.04"]
[Round "5.5"]
[White "Ocelak, David"]
[Black "Kendall, Arthur"]
[Result "1-0"]
[TimeControl "90 min+30s/move"]
[WhiteTitle "-"]
[BlackTitle "-"]
[WhiteFideId "23728795"]
[BlackFideId "343410960"]
[WhiteElo "2009"]
[BlackElo "2032"]

1. e4 {[%clk 01:30:46]} {[%emt 00:00:05]} e6 {[%clk 01:30:56]} {[%emt
00:00:12]} 2. d4 {[%clk 01:30:50]} {[%emt 00:00:26]} d5 {[%clk 01:31:24]}
{[%emt 00:00:02]} 3. Nd2 {[%clk 01:30:43]} {[%emt 00:00:37]} dxe4 {[%clk
01:31:50]} {[%emt 00:00:04]} 4. Nxe4 {[%clk 01:30:45]} {[%emt 00:00:29]} Nd7
{[%clk 01:32:15]} {[%emt 00:00:03]} 5. g3 {[%clk 01:30:34]} {[%emt 00:00:42]}
Ngf6 {[%clk 01:31:38]} {[%emt 00:01:07]} 6. Nxf6+ {[%clk 01:29:48]} {[%emt
00:01:16]} Nxf6 {[%clk 01:32:04]} {[%emt 00:00:04]} 7. Bg2 {[%clk 01:29:49]}
{[%emt 00:00:29]} c5 {[%clk 01:29:51]} {[%emt 00:02:43]} 8. Ne2 {[%clk
01:25:41]} {[%emt 00:04:37]} Be7 {[%clk 01:26:45]} {[%emt 00:03:37]} 9. O-O
{[%clk 01:22:21]} {[%emt 00:03:50]} O-O {[%clk 01:20:40]} {[%emt 00:06:35]} 10.
dxc5 {[%clk 01:13:55]} {[%emt 00:08:55]} Qxd1 {[%clk 01:12:38]} {[%emt
00:08:33]} 11. Rxd1 {[%clk 01:14:14]} {[%emt 00:00:11]} Bxc5 {[%clk 01:13:01]}
{[%emt 00:00:06]} 12. Nc3 {[%clk 01:10:06]} {[%emt 00:04:39]} Ng4 {[%clk
01:03:50]} {[%emt 00:09:41]} 13. Ne4 {[%clk 01:09:47]} {[%emt 00:00:50]} Bb6
{[%clk 01:03:28]} {[%emt 00:00:51]} 14. h3 {[%clk 01:10:01]} {[%emt 00:00:16]}
Ne5 {[%clk 00:46:44]} {[%emt 00:17:13]} 15. Bf4 {[%clk 01:07:19]} {[%emt
00:03:13]} Nc6 {[%clk 00:45:39]} {[%emt 00:01:35]} 16. Bd6 {[%clk 01:01:57]}
{[%emt 00:05:52]} Re8 {[%clk 00:37:16]} {[%emt 00:08:52]} 17. Bc5 {[%clk
01:00:36]} {[%emt 00:01:52]} Bxc5 {[%clk 00:33:13]} {[%emt 00:04:33]} 18. Nxc5
{[%clk 01:00:59]} {[%emt 00:00:07]} e5 {[%clk 00:32:20]} {[%emt 00:01:23]} 19.
b3 {[%clk 00:53:38]} {[%emt 00:07:52]} Kf8 {[%clk 00:24:23]} {[%emt 00:08:25]}
20. c3 {[%clk 00:49:31]} {[%emt 00:04:37]} Ke7 {[%clk 00:24:02]} {[%emt
00:00:51]} 21. a4 {[%clk 00:39:38]} {[%emt 00:10:23]} Rd8 {[%clk 00:22:19]}
{[%emt 00:02:13]} 22. b4 {[%clk 00:32:39]} {[%emt 00:07:29]} Rxd1+ {[%clk
00:17:01]} {[%emt 00:05:48]} 23. Rxd1 {[%clk 00:33:04]} {[%emt 00:00:04]} Rb8
{[%clk 00:17:01]} {[%emt 00:00:31]} 24. a5 {[%clk 00:32:10]} {[%emt 00:01:24]}
Nd8 {[%clk 00:16:31]} {[%emt 00:01:00]} 25. b5 {[%clk 00:27:50]} {[%emt
00:04:50]} b6 {[%clk 00:14:38]} {[%emt 00:02:24]} 26. axb6 {[%clk 00:27:40]}
{[%emt 00:00:39]} Rxb6 {[%clk 00:12:16]} {[%emt 00:02:52]} 27. c4 {[%clk
00:26:41]} {[%emt 00:01:28]} a6 {[%clk 00:10:43]} {[%emt 00:02:04]} 28. Na4
{[%clk 00:25:39]} {[%emt 00:01:32]} Rb8 {[%clk 00:08:53]} {[%emt 00:02:19]} 29.
b6 {[%clk 00:24:14]} {[%emt 00:01:56]} Bb7 {[%clk 00:05:53]} {[%emt 00:03:28]}
30. c5 {[%clk 00:19:56]} {[%emt 00:04:50]} Rc8 {[%clk 00:05:43]} {[%emt
00:00:39]} 31. Rxd8 {[%clk 00:19:38]} {[%emt 00:00:49]} 1-0

[Event "Pobeskydi 2026"]
[Site "Frydek-Mistek, Czech Republic"]
[Date "2026.04.04"]
[Round "5.6"]
[White "Szumiec, Jan"]
[Black "Langmaier, Michal"]
[Result "1/2-1/2"]
[TimeControl "90 min+30s/move"]
[WhiteTitle "-"]
[BlackTitle "-"]
[WhiteFideId "41815661"]
[BlackFideId "23727705"]
[WhiteElo "1826"]
[BlackElo "1949"]

1. e4 {[%clk 01:30:56]} {[%emt 00:00:04]} c5 {[%clk 01:30:43]} {[%emt
00:00:17]} 2. Nf3 {[%clk 01:31:21]} {[%emt 00:00:05]} e6 {[%clk 01:31:07]}
{[%emt 00:00:06]} 3. d4 {[%clk 01:31:35]} {[%emt 00:00:17]} cxd4 {[%clk
01:31:31]} {[%emt 00:00:05]} 4. Nxd4 {[%clk 01:31:58]} {[%emt 00:00:06]} a6
{[%clk 01:31:40]} {[%emt 00:00:22]} 5. c4 {[%clk 01:31:56]} {[%emt 00:00:32]}
Nf6 {[%clk 01:32:04]} {[%emt 00:00:05]} 6. Nc3 {[%clk 01:32:19]} {[%emt
00:00:08]} Bb4 {[%clk 01:32:27]} {[%emt 00:00:06]} 7. Qd3 {[%clk 01:32:36]}
{[%emt 00:00:14]} d5 {[%clk 01:30:40]} {[%emt 00:02:16]} 8. exd5 {[%clk
01:32:56]} {[%emt 00:00:10]} exd5 {[%clk 01:30:38]} {[%emt 00:00:33]} 9. Be2
{[%clk 01:32:51]} {[%emt 00:00:35]} O-O {[%clk 01:29:51]} {[%emt 00:01:17]} 10.
O-O {[%clk 01:32:33]} {[%emt 00:00:48]} Nc6 {[%clk 01:22:39]} {[%emt 00:07:41]}
11. Nxc6 {[%clk 01:32:25]} {[%emt 00:00:39]} bxc6 {[%clk 01:22:51]} {[%emt
00:00:19]} 12. cxd5 {[%clk 01:32:15]} {[%emt 00:00:39]} cxd5 {[%clk 01:21:44]}
{[%emt 00:01:37]} 13. Rd1 {[%clk 01:30:36]} {[%emt 00:02:08]} Be6 {[%clk
01:16:54]} {[%emt 00:05:21]} 14. Bf3 {[%clk 01:25:04]} {[%emt 00:06:02]} Qa5
{[%clk 01:08:05]} {[%emt 00:09:18]} 15. Bd2 {[%clk 01:19:23]} {[%emt 00:06:12]}
Rad8 {[%clk 00:56:21]} {[%emt 00:12:13]} 16. a3 {[%clk 01:18:01]} {[%emt
00:01:53]} Bxc3 {[%clk 00:55:01]} {[%emt 00:01:50]} 17. Bxc3 {[%clk 01:17:57]}
{[%emt 00:00:34]} Qb5 {[%clk 00:54:13]} {[%emt 00:01:18]} 18. Qe3 {[%clk
01:07:32]} {[%emt 00:10:55]} Ne4 {[%clk 00:37:18]} {[%emt 00:17:24]} 19. Bxe4
{[%clk 01:06:10]} {[%emt 00:01:53]} dxe4 {[%clk 00:37:46]} {[%emt 00:00:02]} 20.
Qxe4 {[%clk 01:05:10]} {[%emt 00:01:30]} Qg5 {[%clk 00:35:43]} {[%emt
00:02:32]} 21. Qe5 {[%clk 01:00:23]} {[%emt 00:05:17]} Qxe5 {[%clk 00:34:21]}
{[%emt 00:01:53]} 22. Bxe5 {[%clk 01:00:48]} {[%emt 00:00:06]} Bb3 {[%clk
00:34:16]} {[%emt 00:00:34]} 23. Rxd8 {[%clk 00:58:16]} {[%emt 00:03:02]} Rxd8
{[%clk 00:34:39]} {[%emt 00:00:07]} 24. Bc3 {[%clk 00:58:35]} {[%emt 00:00:10]}
Rd1+ {[%clk 00:33:58]} {[%emt 00:01:11]} 25. Rxd1 {[%clk 00:59:04]} {[%emt
00:00:02]} Bxd1 {[%clk 00:34:22]} {[%emt 00:00:06]} 26. Kf1 {[%clk 00:58:51]}
{[%emt 00:00:43]} g6 {[%clk 00:34:28]} {[%emt 00:00:24]} 27. Ke1 {[%clk
00:59:03]} {[%emt 00:00:18]} Bb3 {[%clk 00:34:47]} {[%emt 00:00:10]} 28. Kd2
{[%clk 00:58:49]} {[%emt 00:00:44]} Kf8 {[%clk 00:34:53]} {[%emt 00:00:24]} 29.
Bd4 {[%clk 00:53:02]} {[%emt 00:06:17]} a5 {[%clk 00:33:21]} {[%emt 00:02:02]}
30. Bf6 {[%clk 00:48:39]} {[%emt 00:04:52]} Ke8 {[%clk 00:31:18]} {[%emt
00:02:33]} 31. Ke3 {[%emt 00:01:02]} Kd7 {[%clk 00:31:07]} 32. Kf4 {[%clk
00:48:57]} {[%emt 00:00:21]} Ke6 {[%clk 00:30:52]} {[%emt 00:00:45]} 33. Bc3
{[%clk 00:49:21]} {[%emt 00:00:06]} a4 {[%clk 00:31:17]} {[%emt 00:00:06]} 34.
Kg5 {[%clk 00:49:40]} {[%emt 00:00:10]} h5 {[%clk 00:31:02]} {[%emt 00:00:45]}
35. f3 {[%clk 00:45:05]} {[%emt 00:05:05]} Bd1 {[%clk 00:29:52]} {[%emt
00:01:40]} 36. Bd4 {[%clk 00:44:41]} {[%emt 00:00:54]} 1/2-1/2